[Event "Deloitte NED-ch Women 2019"]
[Site "Amsterdam"]
[Date "2019.07.03"]
[Round "3.3"]
[White "Paulet, Iozefina"]
[Black "Lanchava, Tea"]
[Result "1-0"]
[ECO "B06"]
[WhiteElo "2262"]
[BlackElo "2315"]
[Annotator "NA"]
[PlyCount "77"]
[EventDate "2019.07.01"]
[EventType "tourn"]
[EventCountry "NED"]
[SourceTitle "playchess.com"]
[Source "ChessBase"]
[SourceQuality "1"]
[TimeControl "40/5400+30:1800+30"]

1. e4 {[%emt 0:00:00]} g6 {[%emt 0:00:00]} 2. d4 {[%emt 0:00:00]} Bg7 {[%emt 0:00:12]} 3. Nf3 {[%emt 0:00:30]} d6 {[%emt 0:01:07]} 4. Be3 {[%emt 0:00:11]} a6 {[%emt 0:01:05]} 5. Nc3 {[%emt 0:00:11]} b5 {[%emt 0:00:38]} 6. Bd3 {[%emt 0:03:28]} Bb7 {[%emt 0:00:47]} 7. a4 {[%emt 0:02:09]} b4 {[%emt 0:05:35]} 8. Ne2 {[%emt 0:00:34]} Nf6 {[%emt 0:01:14]} 9. Ng3 {[%emt 0:00:05]} Ng4 {[%emt 0:10:11]} 10. Bd2 {[%emt 0:04:04]} c5 {[%emt 0:04:40]} 11. h3 {[%emt 0:02:22]} Nf6 {[%emt 0:03:58]} 12. dxc5 {[%emt 0:01:18]} dxc5 {[%emt 0:00:23]} 13. Qe2 {[%emt 0:00:07]} Qc7 {[%emt 0:02:48]} 14. O-O {[%emt 0:04:48]} O-O {[%emt 0:05:13]} 15. c3 {[%emt 0:03:55]} a5 {[%emt 0:02:22]} 16. Rac1 {[%emt 0:11:28]} b3 {[%emt 0:12:23]} 17. Bc4 {[%emt 0:04:44]} Ba6 {[%emt 0:01:44]} 18. Be3 {[%emt 0:08:34]} Nfd7 {[%emt 0:00:43]} 19. Nd2 {[%emt 0:01:57]} Nb6 {[%emt 0:11:39]} 20. Bxa6 {[%emt 0:00:41]} Nxa6 {[%emt 0:00:15]} 21. Ra1 {[%emt 0:06:13]} Nd7 {[%emt 0:08:57]} 22. Ra3 {[%emt 0:09:54]} Rfb8 {[%emt 0:01:06]} 23. Nc4 {[%emt 0:06:27]} Rb7 {[%emt 0:01:10]} 24. Rd1 {[%emt 0:01:40]} Nab8 {[%emt 0:03:46]} 25. Nf1 {[%emt 0:00:11]} Nc6 {[%emt 0:00:42]} 26. Nfd2 {[%emt 0:00:09]} Rab8 {[%emt 0:00:08]} 27. f4 {[%emt 0:00:49]} Nd8 {[%emt 0:03:00]} 28. Rf1 {[%emt 0:03:12]} f6 {[%emt 0:03:28]} 29. Qd1 {[%emt 0:00:37]} Nf7 {[%emt 0:01:45]} 30. Rxb3 {[%emt 0:02:36]} Rxb3 {[%emt 0:00:25]} 31. Nxb3 {[%emt 0:00:03]} Nd6 {[%emt 0:00:13]} 32. Nbd2 {[%emt 0:11:53]} Nb6 {[%emt 0:01:29]} 33. Nxa5 {[%emt 0:02:31]} c4 {[%emt 0:03:00]} 34. Kh1 {[%emt 0:04:09]} Nbc8 {[%emt 0:00:43]} 35. Ndxc4 {[%emt 0:00:28]} Kh8 {[%emt 0:00:42]} 36. Qd5 {[%emt 0:01:33]} f5 {[%emt 0:02:49]} 37. e5 {[%emt 0:00:43]} Ne4 {[%emt 0:00:05]} 38. Rd1 {[%emt 0:00:12]} Na7 {[%emt 0:00:40]} 39. Qd7 {[%emt 0:01:44]} 1-0

[Event "Deloitte NED-ch Women 2019"]
[Site "Amsterdam"]
[Date "2019.07.03"]
[Round "3.5"]
[White "Keetman, Maaike"]
[Black "Ratsma, Rosa"]
[Result "0-1"]
[ECO "B90"]
[WhiteElo "2153"]
[BlackElo "2282"]
[Annotator "NA"]
[PlyCount "52"]
[EventDate "2019.07.01"]
[EventType "tourn"]
[EventCountry "NED"]
[SourceTitle "playchess.com"]
[Source "ChessBase"]
[SourceQuality "1"]
[TimeControl "40/5400+30:1800+30"]

1. e4 {[%emt 0:00:00]} c5 {[%emt 0:00:00]} 2. Nf3 {[%emt 0:00:00]} d6 {[%emt 0:00:00]} 3. d4 {[%emt 0:00:00]} cxd4 {[%emt 0:00:00]} 4. Nxd4 {[%emt 0:00:00]} Nf6 {[%emt 0:00:00]} 5. Nc3 {[%emt 0:00:00]} a6 {[%emt 0:00:00]} 6. h3 {[%emt 0:00:00]} e5 {[%emt 0:00:11]} 7. Nb3 {[%emt 0:00:11]} Be6 {[%emt 0:00:24]} 8. f4 {[%emt 0:00:17]} Nc6 {[%emt 0:04:29]} 9. g4 {[%emt 0:05:01]} h6 {[%emt 0:06:02]} 10. f5 {[%emt 0:02:50]} Bxb3 {[%emt 0:08:36]} 11. axb3 {[%emt 0:00:41]} Qb6 {[%emt 0:13:28]} 12. Bd3 {[%emt 0:21:13]} Be7 {[%emt 0:08:40]} 13. Qe2 {[%emt 0:22:21]} Nd4 {[%emt 0:06:46]} 14. Qe3 {[%emt 0:02:00]} d5 {[%emt 0:06:10]} 15. Bd2 {[%emt 0:10:43]} dxe4 {[%emt 0:06:36]} 16. Nxe4 {[%emt 0:01:23]} Nd5 {[%emt 0:04:52]} 17. Qf2 {[%emt 0:00:40]} Bh4 {[%emt 0:01:13]} 18. Ng3 {[%emt 0:00:14]} O-O {[%emt 0:04:20]} 19. Kf1 {[%emt 0:05:26]} Rac8 {[%emt 0:07:31]} 20. Rc1 {[%emt 0:05:05]} Rfe8 {[%emt 0:03:24]} 21. Bc4 {[%emt 0:12:19]} Nf6 {[%emt 0:07:07]} 22. Qg2 {[%emt 0:00:44]} Bxg3 {[%emt 0:06:03]} 23. Qxg3 {[%emt 0:00:07]} Ne4 {[%emt 0:00:19]} 24. Qg2 {[%emt 0:01:43]} Nf3 {[%emt 0:01:08]} 25. Be1 {[%emt 0:02:29]} Qe3 {[%emt 0:00:30]} 26. Rd1 {[%emt 0:00:16]} Nxe1 {[%emt 0:00:46]} 0-1

[Event "Deloitte NED-ch Women 2019"]
[Site "Amsterdam"]
[Date "2019.07.03"]
[Round "3.6"]
[White "Roebers, Eline"]
[Black "Van Foreest, Machteld"]
[Result "0-1"]
[ECO "C45"]
[WhiteElo "2069"]
[BlackElo "2058"]
[Annotator "NA"]
[PlyCount "132"]
[EventDate "2019.07.01"]
[EventType "tourn"]
[EventCountry "NED"]
[SourceTitle "playchess.com"]
[Source "ChessBase"]
[SourceQuality "1"]
[TimeControl "40/5400+30:1800+30"]

1. e4 {[%emt 0:00:00]} e5 {[%emt 0:00:00]} 2. Nf3 {[%emt 0:00:00]} Nc6 {[%emt 0:00:04]} 3. d4 {[%emt 0:00:35]} exd4 {[%emt 0:00:05]} 4. Nxd4 {[%emt 0:00:05]} Bc5 {[%emt 0:00:06]} 5. Nb3 {[%emt 0:00:36]} Bb6 {[%emt 0:00:06]} 6. Nc3 {[%emt 0:00:41]} Nf6 {[%emt 0:00:25]} 7. Qe2 {[%emt 0:02:18]} d6 {[%emt 0:00:57]} 8. Be3 {[%emt 0:01:37]} Be6 {[%emt 0:02:46]} 9. O-O-O {[%emt 0:02:09]} Qe7 {[%emt 0:02:05]} 10. g3 {[%emt 0:04:39]} Ne5 {[%emt 0:14:13]} 11. Bg2 {[%emt 0:03:52]} Bxe3+ {[%emt 0:06:05]} 12. Qxe3 {[%emt 0:00:21]} O-O {[%emt 0:11:58]} 13. f4 {[%emt 0:09:05]} Nc4 {[%emt 0:01:59]} 14. Qe2 {[%emt 0:02:33]} Nb6 {[%emt 0:06:19]} 15. Bf3 {[%emt 0:07:17]} Bc4 {[%emt 0:01:31]} 16. Qg2 {[%emt 0:05:54]} Bxb3 {[%emt 0:03:50]} 17. cxb3 {[%emt 0:00:49]} a5 {[%emt 0:01:11]} 18. Rhe1 {[%emt 0:15:30]} Nfd7 {[%emt 0:02:23]} 19. e5 {[%emt 0:09:58]} dxe5 {[%emt 0:01:11]} 20. Bxb7 {[%emt 0:01:01]} Rab8 {[%emt 0:06:46]} 21. Kb1 {[%emt 0:01:42]} a4 {[%emt 0:03:09]} 22. Bd5 {[%emt 0:06:29]} Rfd8 {[%emt 0:02:37]} 23. bxa4 {[%emt 0:05:33]} Qc5 {[%emt 0:04:21]} 24. fxe5 {[%emt 0:05:33]} Nxd5 {[%emt 0:03:42]} 25. Nxd5 {[%emt 0:00:06]} c6 {[%emt 0:01:03]} 26. Nf4 {[%emt 0:02:30]} Nxe5 {[%emt 0:01:34]} 27. Qe4 {[%emt 0:03:06]} Rxb2+ {[%emt 0:05:06]} 28. Ka1 {[%emt 0:00:28]} Rxd1+ {[%emt 0:00:09]} 29. Rxd1 {[%emt 0:00:03]} Rb8 {[%emt 0:00:09]} 30. Qd4 {[%emt 0:01:49]} Qa5 {[%emt 0:03:10]} 31. Ne2 {[%emt 0:03:03]} Nf3 {[%emt 0:06:00]} 32. Qc3 {[%emt 0:02:39]} Qxa4 {[%emt 0:01:40]} 33. Rc1 {[%emt 0:01:13]} Qe4 {[%emt 0:01:57]} 34. Nf4 {[%emt 0:01:35]} Nd4 {[%emt 0:00:47]} 35. Qd3 {[%emt 0:01:25]} Qe5 {[%emt 0:00:39]} 36. Qc3 {[%emt 0:00:23]} Qd6 {[%emt 0:04:18]} 37. Rb1 {[%emt 0:01:08]} Nb5 {[%emt 0:02:38]} 38. Qb2 {[%emt 0:00:27]} Ra8 {[%emt 0:00:39]} 39. Ne2 {[%emt 0:01:05]} Na3 {[%emt 0:00:37]} 40. Rc1 {[%emt 0:00:00]} Qd5 {[%emt 0:01:10]} 41. Nc3 {[%emt 0:07:01]} Qf5 {[%emt 0:12:22]} 42. Na4 {[%emt 0:06:43]} Nb5 {[%emt 0:01:46]} 43. Rxc6 {[%emt 0:07:47]} h6 {[%emt 0:06:59]} 44. Rc5 {[%emt 0:04:16]} Qf1+ {[%emt 0:00:53]} 45. Rc1 {[%emt 0:00:09]} Qd3 {[%emt 0:00:53]} 46. Nc3 {[%emt 0:02:09]} Nd4 {[%emt 0:01:46]} 47. Qb7 {[%emt 0:03:33]} Re8 {[%emt 0:02:01]} 48. Qb1 {[%emt 0:01:05]} Qc4 {[%emt 0:01:26]} 49. Ne4 {[%emt 0:01:05]} Qe2 {[%emt 0:01:30]} 50. Nc3 {[%emt 0:01:06]} Qxh2 {[%emt 0:01:09]} 51. Qd3 {[%emt 0:00:18]} Rd8 {[%emt 0:00:47]} 52. Nd5 {[%emt 0:00:42]} Ra8 {[%emt 0:00:56]} 53. Nb4 {[%emt 0:00:39]} Qf2 {[%emt 0:00:22]} 54. Rd1 {[%emt 0:00:29]} Rd8 {[%emt 0:01:00]} 55. Rf1 {[%emt 0:00:35]} Qg2 {[%emt 0:01:02]} 56. Rc1 {[%emt 0:00:26]} Ne6 {[%emt 0:02:20]} 57. Qb1 {[%emt 0:00:32]} Rb8 {[%emt 0:00:43]} 58. Qb3 {[%emt 0:00:27]} Qd2 {[%emt 0:00:34]} 59. Rc2 {[%emt 0:00:31]} Qd4+ {[%emt 0:00:21]} 60. Qc3 {[%emt 0:00:12]} Rxb4 {[%emt 0:00:24]} 61. Qxd4 {[%emt 0:00:20]} Nxd4 {[%emt 0:00:08]} 62. Rc8+ {[%emt 0:00:04]} Kh7 {[%emt 0:00:02]} 63. a3 {[%emt 0:00:06]} Ra4 {[%emt 0:00:18]} 64. Kb2 {[%emt 0:00:04]} Nb5 {[%emt 0:00:21]} 65. Kb3 {[%emt 0:00:09]} Rxa3+ {[%emt 0:00:11]} 66. Kb4 {[%emt 0:00:04]} Nd6 {[%emt 0:00:36]} 0-1

[Event "Deloitte NED-ch Women 2019"]
[Site "Amsterdam"]
[Date "2019.07.03"]
[Round "3.8"]
[White "Kazarian, Anna-Maja"]
[Black "Van Weersel, Arlette"]
[Result "1/2-1/2"]
[ECO "B01"]
[WhiteElo "2142"]
[BlackElo "2176"]
[Annotator "NA"]
[PlyCount "115"]
[EventDate "2019.07.01"]
[EventType "tourn"]
[EventCountry "NED"]
[SourceTitle "playchess.com"]
[Source "ChessBase"]
[SourceQuality "1"]
[TimeControl "40/5400+30:1800+30"]

1. e4 {[%emt 0:00:00]} d5 {[%emt 0:00:00]} 2. exd5 {[%emt 0:00:00]} Qxd5 {[%emt 0:00:00]} 3. Nc3 {[%emt 0:00:00]} Qd8 {[%emt 0:00:00]} 4. d4 {[%emt 0:00:23]} Nf6 {[%emt 0:00:00]} 5. Bc4 {[%emt 0:01:13]} a6 {[%emt 0:00:04]} 6. a4 {[%emt 0:01:13]} Nc6 {[%emt 0:00:47]} 7. Nge2 {[%emt 0:02:47]} Bf5 {[%emt 0:02:07]} 8. O-O {[%emt 0:01:32]} e6 {[%emt 0:01:15]} 9. f3 {[%emt 0:19:10]} Be7 {[%emt 0:08:43]} 10. Be3 {[%emt 0:01:51]} Nb4 {[%emt 0:06:48]} 11. Bb3 {[%emt 0:00:56]} O-O {[%emt 0:00:57]} 12. Bf2 {[%emt 0:05:43]} h6 {[%emt 0:08:42]} 13. Ng3 {[%emt 0:01:41]} Bg6 {[%emt 0:00:37]} 14. Nce4 {[%emt 0:03:58]} b6 {[%emt 0:09:44]} 15. Qd2 {[%emt 0:10:01]} Nxe4 {[%emt 0:15:11]} 16. fxe4 {[%emt 0:01:35]} c5 {[%emt 0:02:23]} 17. c3 {[%emt 0:10:28]} Nc6 {[%emt 0:00:41]} 18. Rad1 {[%emt 0:01:25]} Na5 {[%emt 0:11:54]} 19. Bc2 {[%emt 0:01:55]} cxd4 {[%emt 0:09:37]} 20. cxd4 {[%emt 0:09:44]} Qc7 {[%emt 0:00:48]} 21. Qe2 {[%emt 0:05:04]} Rfd8 {[%emt 0:04:12]} 22. Bd3 {[%emt 0:01:04]} Nc6 {[%emt 0:06:52]} 23. Bxa6 {[%emt 0:03:15]} h5 {[%emt 0:04:39]} 24. Bb5 {[%emt 0:05:40]} h4 {[%emt 0:00:36]} 25. Nh5 {[%emt 0:04:33]} Nb4 {[%emt 0:01:20]} 26. e5 {[%emt 0:04:05]} Qc2 {[%emt 0:01:41]} 27. Qg4 {[%emt 0:01:10]} Qf5 {[%emt 0:01:38]} 28. Qxf5 {[%emt 0:00:31]} Bxf5 {[%emt 0:00:06]} 29. Nf4 {[%emt 0:01:19]} Bc2 {[%emt 0:00:39]} 30. Ra1 {[%emt 0:00:53]} Bb3 {[%emt 0:00:54]} 31. Ne2 {[%emt 0:00:37]} Nc2 {[%emt 0:00:32]} 32. Rac1 {[%emt 0:00:23]} Bg5 {[%emt 0:00:12]} 33. Rb1 {[%emt 0:01:14]} Bxa4 {[%emt 0:00:16]} 34. Bd3 {[%emt 0:00:51]} Nb4 {[%emt 0:00:48]} 35. Be4 {[%emt 0:00:03]} Rac8 {[%emt 0:00:44]} 36. Nc3 {[%emt 0:00:14]} Bb3 {[%emt 0:01:07]} 37. Bf3 {[%emt 0:01:00]} Nc2 {[%emt 0:00:56]} 38. Ne4 {[%emt 0:00:32]} Be7 {[%emt 0:00:14]} 39. Nd2 {[%emt 0:00:50]} Ba2 {[%emt 0:00:38]} 40. Rbc1 {[%emt 0:00:32]} Nxd4 {[%emt 0:00:42]} 41. Rxc8 {[%emt 0:06:20]} Nxf3+ {[%emt 0:00:51]} 42. Nxf3 {[%emt 0:00:10]} Rxc8 {[%emt 0:00:07]} 43. Bxb6 {[%emt 0:00:19]} Bd5 {[%emt 0:06:50]} 44. h3 {[%emt 0:04:07]} Rc4 {[%emt 0:06:40]} 45. Be3 {[%emt 0:08:15]} Rb4 {[%emt 0:03:49]} 46. Rf2 {[%emt 0:00:56]} Re4 {[%emt 0:06:56]} 47. Ba7 {[%emt 0:02:40]} f6 {[%emt 0:00:53]} 48. exf6 {[%emt 0:04:07]} Bxf6 {[%emt 0:00:08]} 49. Bc5 {[%emt 0:01:23]} Rc4 {[%emt 0:01:19]} 50. b4 {[%emt 0:00:25]} e5 {[%emt 0:04:34]} 51. Re2 {[%emt 0:01:45]} Bxf3 {[%emt 0:02:54]} 52. gxf3 {[%emt 0:00:03]} Kf7 {[%emt 0:00:20]} 53. Re4 {[%emt 0:01:56]} Rc1+ {[%emt 0:00:19]} 54. Kf2 {[%emt 0:01:18]} Ke6 {[%emt 0:00:18]} 55. Re1 {[%emt 0:01:26]} Rc4 {[%emt 0:00:28]} 56. Re4 {[%emt 0:00:03]} Rc2+ {[%emt 0:00:42]} 57. Re2 {[%emt 0:00:03]} Rc4 {[%emt 0:00:17]} 58. Re4 {[%emt 0:00:03]} 1/2-1/2

[Event "Deloitte NED-ch Women 2019"]
[Site "Amsterdam"]
[Date "2019.07.04"]
[Round "4.3"]
[White "Paulet, Iozefina"]
[Black "Roebers, Eline"]
[Result "1-0"]
[ECO "D02"]
[WhiteElo "2262"]
[BlackElo "2069"]
[Annotator "NA"]
[PlyCount "93"]
[EventDate "2019.07.01"]
[EventType "tourn"]
[EventCountry "NED"]
[SourceTitle "playchess.com"]
[Source "ChessBase"]
[SourceQuality "1"]
[TimeControl "40/5400+30:1800+30"]

1. e4 {[%emt 0:00:00]} c6 {[%emt 0:00:00]} 2. d4 {[%emt 0:00:00]} d5 {[%emt 0:00:04]} 3. exd5 {[%emt 0:00:00]} cxd5 {[%emt 0:00:06]} 4. Bf4 {[%emt 0:00:00]} Nc6 {[%emt 0:00:39]} 5. c3 {[%emt 0:00:00]} Nf6 {[%emt 0:00:55]} 6. Nd2 {[%emt 0:00:06]} g6 {[%emt 0:01:49]} 7. Be2 {[%emt 0:00:07]} Bg7 {[%emt 0:01:39]} 8. h3 {[%emt 0:01:03]} O-O {[%emt 0:01:42]} 9. Ngf3 {[%emt 0:00:03]} Bf5 {[%emt 0:04:38]} 10. O-O {[%emt 0:00:06]} Ne4 {[%emt 0:07:55]} 11. Qb3 {[%emt 0:34:52]} Qd7 {[%emt 0:15:28]} 12. Rad1 {[%emt 0:06:57]} a6 {[%emt 0:09:56]} 13. a4 {[%emt 0:04:59]} Kh8 {[%emt 0:08:31]} 14. Nxe4 {[%emt 0:08:40]} Bxe4 {[%emt 0:00:49]} 15. Ne1 {[%emt 0:01:55]} Rac8 {[%emt 0:13:38]} 16. g4 {[%emt 0:05:50]} g5 {[%emt 0:13:35]} 17. Bxg5 {[%emt 0:00:18]} Rg8 {[%emt 0:01:40]} 18. Bf4 {[%emt 0:01:33]} Nd8 {[%emt 0:03:39]} 19. f3 {[%emt 0:01:22]} Bg6 {[%emt 0:00:08]} 20. Nd3 {[%emt 0:01:15]} Qe6 {[%emt 0:03:17]} 21. Ne5 {[%emt 0:04:20]} Qf6 {[%emt 0:02:04]} 22. Nxg6+ {[%emt 0:01:19]} fxg6 {[%emt 0:00:17]} 23. Bg3 {[%emt 0:00:57]} Ne6 {[%emt 0:02:22]} 24. f4 {[%emt 0:01:43]} g5 {[%emt 0:01:39]} 25. f5 {[%emt 0:03:13]} Nf4 {[%emt 0:00:06]} 26. Bxf4 {[%emt 0:00:07]} gxf4 {[%emt 0:00:05]} 27. Qxd5 {[%emt 0:00:03]} Qh4 {[%emt 0:01:32]} 28. Qg2 {[%emt 0:00:12]} Bh6 {[%emt 0:01:22]} 29. Bf3 {[%emt 0:01:04]} b5 {[%emt 0:00:33]} 30. Bd5 {[%emt 0:07:18]} Rg7 {[%emt 0:00:20]} 31. axb5 {[%emt 0:00:19]} axb5 {[%emt 0:00:05]} 32. Be6 {[%emt 0:00:13]} Rd8 {[%emt 0:00:33]} 33. Ra1 {[%emt 0:00:09]} Qg3 {[%emt 0:00:32]} 34. Qxg3 {[%emt 0:00:27]} fxg3 {[%emt 0:00:05]} 35. Kg2 {[%emt 0:00:02]} Bg5 {[%emt 0:00:24]} 36. Kxg3 {[%emt 0:00:07]} Bf6 {[%emt 0:00:08]} 37. b4 {[%emt 0:01:15]} Bg5 {[%emt 0:00:21]} 38. Ra2 {[%emt 0:00:21]} h6 {[%emt 0:00:13]} 39. Rfa1 {[%emt 0:00:06]} Kh7 {[%emt 0:00:08]} 40. h4 {[%emt 0:00:29]} Bf6 {[%emt 0:00:08]} 41. Ra8 {[%emt 0:30:39]} Rd6 {[%emt 0:30:06]} 42. Rc8 {[%emt 0:00:12]} Bxd4 {[%emt 0:00:21]} 43. cxd4 {[%emt 0:00:30]} Rxd4 {[%emt 0:00:04]} 44. f6 {[%emt 0:00:03]} exf6 {[%emt 0:00:18]} 45. Bf5+ {[%emt 0:00:04]} Rg6 {[%emt 0:00:05]} 46. Ra7+ {[%emt 0:00:04]} Rd7 {[%emt 0:00:03]} 47. Rxd7# {[%emt 0:00:05]} 1-0

[Event "Deloitte NED-ch Women 2019"]
[Site "Amsterdam"]
[Date "2019.07.04"]
[Round "4.5"]
[White "Ratsma, Rosa"]
[Black "Kazarian, Anna-Maja"]
[Result "1-0"]
[ECO "B13"]
[WhiteElo "2282"]
[BlackElo "2142"]
[Annotator "NA"]
[PlyCount "99"]
[EventDate "2019.07.01"]
[EventType "tourn"]
[EventCountry "NED"]
[SourceTitle "playchess.com"]
[Source "ChessBase"]
[SourceQuality "1"]
[TimeControl "40/5400+30:1800+30"]

1. e4 {[%emt 0:00:00]} c6 {[%emt 0:00:00]} 2. d4 {[%emt 0:00:00]} d5 {[%emt 0:00:00]} 3. exd5 {[%emt 0:00:00]} cxd5 {[%emt 0:00:00]} 4. Bd3 {[%emt 0:00:00]} Nc6 {[%emt 0:00:00]} 5. c3 {[%emt 0:00:02]} Qc7 {[%emt 0:00:35]} 6. h3 {[%emt 0:00:15]} Nf6 {[%emt 0:02:10]} 7. Nf3 {[%emt 0:00:16]} g6 {[%emt 0:03:51]} 8. Qc2 {[%emt 0:00:24]} Bg7 {[%emt 0:01:34]} 9. O-O {[%emt 0:00:24]} O-O {[%emt 0:01:08]} 10. Re1 {[%emt 0:00:35]} Nh5 {[%emt 0:06:45]} 11. Be3 {[%emt 0:00:44]} e5 {[%emt 0:17:51]} 12. dxe5 {[%emt 0:02:50]} Nxe5 {[%emt 0:00:06]} 13. Nxe5 {[%emt 0:03:04]} Bxe5 {[%emt 0:00:25]} 14. Nd2 {[%emt 0:02:28]} Nf4 {[%emt 0:06:08]} 15. Nf3 {[%emt 0:02:42]} Bg7 {[%emt 0:14:40]} 16. Bf1 {[%emt 0:04:07]} Rd8 {[%emt 0:03:51]} 17. Qd2 {[%emt 0:07:13]} Ne6 {[%emt 0:01:18]} 18. g3 {[%emt 0:07:13]} a5 {[%emt 0:05:39]} 19. Rad1 {[%emt 0:08:44]} a4 {[%emt 0:01:12]} 20. a3 {[%emt 0:02:33]} b6 {[%emt 0:05:43]} 21. Bg2 {[%emt 0:06:28]} Bb7 {[%emt 0:12:49]} 22. Nd4 {[%emt 0:07:28]} Nc5 {[%emt 0:00:00]} 23. Bh6 {[%emt 0:13:51]} Bh8 {[%emt 0:01:41]} 24. h4 {[%emt 0:06:12]} Qd7 {[%emt 0:06:48]} 25. Kh2 {[%emt 0:02:42]} Ne4 {[%emt 0:03:05]} 26. Qf4 {[%emt 0:10:48]} Re8 {[%emt 0:02:14]} 27. Bh3 {[%emt 0:01:32]} Qe7 {[%emt 0:01:53]} 28. Qe3 {[%emt 0:04:25]} Qd8 {[%emt 0:01:47]} 29. Qf3 {[%emt 0:03:23]} Qf6 {[%emt 0:00:28]} 30. Qxf6 {[%emt 0:01:23]} Bxf6 {[%emt 0:00:02]} 31. Kg2 {[%emt 0:00:27]} Nc5 {[%emt 0:01:07]} 32. Re3 {[%emt 0:01:52]} Rxe3 {[%emt 0:00:23]} 33. Bxe3 {[%emt 0:00:13]} Kg7 {[%emt 0:00:01]} 34. Bg4 {[%emt 0:00:29]} Ba6 {[%emt 0:00:42]} 35. Bf3 {[%emt 0:00:59]} Bc4 {[%emt 0:00:10]} 36. Be2 {[%emt 0:01:20]} Re8 {[%emt 0:00:31]} 37. Bf3 {[%emt 0:00:34]} Rc8 {[%emt 0:01:09]} 38. h5 {[%emt 0:00:13]} Be5 {[%emt 0:00:40]} 39. h6+ {[%emt 0:00:25]} Kf6 {[%emt 0:00:05]} 40. Bg4 {[%emt 0:00:19]} Re8 {[%emt 0:00:49]} 41. Nf3 {[%emt 0:04:48]} Ne4 {[%emt 0:02:19]} 42. Nxe5 {[%emt 0:05:16]} Kxe5 {[%emt 0:00:07]} 43. f3 {[%emt 0:00:58]} f5 {[%emt 0:03:36]} 44. Bh3 {[%emt 0:05:24]} Nd6 {[%emt 0:09:06]} 45. Bxb6 {[%emt 0:01:53]} Kf6 {[%emt 0:03:34]} 46. Bd4+ {[%emt 0:00:22]} Kg5 {[%emt 0:01:09]} 47. f4+ {[%emt 0:02:10]} Kh5 {[%emt 0:00:08]} 48. Rh1 {[%emt 0:01:19]} Re2+ {[%emt 0:00:30]} 49. Kf3 {[%emt 0:00:27]} g5 {[%emt 0:03:42]} 50. Bxf5+ {[%emt 0:00:12]} 1-0

[Event "Deloitte NED-ch Women 2019"]
[Site "Amsterdam"]
[Date "2019.07.04"]
[Round "4.6"]
[White "Lanchava, Tea"]
[Black "Van Weersel, Arlette"]
[Result "0-1"]
[ECO "A47"]
[WhiteElo "2315"]
[BlackElo "2176"]
[Annotator "NA"]
[PlyCount "104"]
[EventDate "2019.07.01"]
[EventType "tourn"]
[EventCountry "NED"]
[SourceTitle "playchess.com"]
[Source "ChessBase"]
[SourceQuality "1"]
[TimeControl "40/5400+30:1800+30"]

1. Nf3 {[%emt 0:00:00]} d5 {[%emt 0:00:33]} 2. b3 {[%emt 0:00:12]} Nf6 {[%emt 0:00:20]} 3. Bb2 {[%emt 0:00:14]} e6 {[%emt 0:00:20]} 4. e3 {[%emt 0:00:17]} Be7 {[%emt 0:02:33]} 5. d4 {[%emt 0:00:28]} O-O {[%emt 0:01:31]} 6. Bd3 {[%emt 0:00:10]} b6 {[%emt 0:00:23]} 7. O-O {[%emt 0:00:48]} Bb7 {[%emt 0:00:20]} 8. Ne5 {[%emt 0:04:01]} Nbd7 {[%emt 0:05:12]} 9. Qe2 {[%emt 0:03:34]} c5 {[%emt 0:02:49]} 10. c4 {[%emt 0:02:33]} Rc8 {[%emt 0:07:49]} 11. cxd5 {[%emt 0:08:40]} cxd4 {[%emt 0:15:20]} 12. Nxf7 {[%emt 0:07:00]} Kxf7 {[%emt 0:18:02]} 13. dxe6+ {[%emt 0:00:11]} Kxe6 {[%emt 0:00:04]} 14. exd4+ {[%emt 0:06:27]} Kf7 {[%emt 0:00:31]} 15. Bc4+ {[%emt 0:07:02]} Rxc4 {[%emt 0:01:23]} 16. bxc4 {[%emt 0:00:10]} Re8 {[%emt 0:03:31]} 17. Nc3 {[%emt 0:05:19]} Bd6 {[%emt 0:01:37]} 18. Qd3 {[%emt 0:02:20]} Nc5 {[%emt 0:06:23]} 19. Qh3 {[%emt 0:05:15]} Bc8 {[%emt 0:08:20]} 20. Qf3 {[%emt 0:01:54]} Bg4 {[%emt 0:04:50]} 21. Qc6 {[%emt 0:00:12]} Re6 {[%emt 0:02:11]} 22. Qb5 {[%emt 0:00:36]} a6 {[%emt 0:03:36]} 23. Qb4 {[%emt 0:00:06]} Nd3 {[%emt 0:04:31]} 24. Qb3 {[%emt 0:00:06]} Nxb2 {[%emt 0:06:24]} 25. Qxb2 {[%emt 0:00:08]} Nh5 {[%emt 0:00:26]} 26. f4 {[%emt 0:05:19]} Kg8 {[%emt 0:02:26]} 27. g3 {[%emt 0:02:49]} Bxf4 {[%emt 0:00:54]} 28. d5 {[%emt 0:07:00]} Be3+ {[%emt 0:00:10]} 29. Kg2 {[%emt 0:00:13]} Rg6 {[%emt 0:00:51]} 30. Rae1 {[%emt 0:00:50]} Bc5 {[%emt 0:00:36]} 31. Ne4 {[%emt 0:00:40]} Qc8 {[%emt 0:00:44]} 32. Kh1 {[%emt 0:00:55]} Bh3 {[%emt 0:00:28]} 33. Rf3 {[%emt 0:00:06]} Bg4 {[%emt 0:00:36]} 34. Rb3 {[%emt 0:00:44]} h6 {[%emt 0:00:43]} 35. Qe5 {[%emt 0:00:31]} Qf8 {[%emt 0:00:21]} 36. Kg2 {[%emt 0:02:01]} Kh7 {[%emt 0:00:39]} 37. Nxc5 {[%emt 0:02:01]} Qxc5 {[%emt 0:00:13]} 38. Qe4 {[%emt 0:00:14]} Nf6 {[%emt 0:00:43]} 39. Qd3 {[%emt 0:00:09]} Qc8 {[%emt 0:00:17]} 40. Rxb6 {[%emt 0:00:42]} Bh3+ {[%emt 0:00:32]} 41. Kh1 {[%emt 0:30:09]} Bf5 {[%emt 0:01:49]} 42. Qf3 {[%emt 0:00:00]} Bg4 {[%emt 0:01:07]} 43. Qf1 {[%emt 0:00:00]} Bh3 {[%emt 0:12:06]} 44. Qe2 {[%emt 0:00:00]} Bg4 {[%emt 0:00:37]} 45. Qd3 {[%emt 0:00:00]} Bf5 {[%emt 0:00:28]} 46. Qf3 {[%emt 0:11:02]} Bg4 {[%emt 0:00:13]} 47. Qb3 {[%emt 0:00:27]} Qf5 {[%emt 0:02:30]} 48. Rbe6 {[%emt 0:01:47]} Ne4 {[%emt 0:09:30]} 49. Qe3 {[%emt 0:00:57]} Nxg3+ {[%emt 0:03:37]} 50. Kg1 {[%emt 0:10:06]} Ne2+ {[%emt 0:00:08]} 51. Rxe2 {[%emt 0:00:46]} Bxe2+ {[%emt 0:00:05]} 52. Rxg6 {[%emt 0:00:19]} Qf1# {[%emt 0:00:07]} 0-1